bitfinex/quotes_SOLUSD_20220210
["timestamp","ask_amount","ask_price","bid_price","bid_amount"]
[1644464838686,24.0352,111.13,111.09,12.71]
[1644464839688,69.94907433,111.13,111.09,12.71]
[1644464839886,70.19907433,111.13,111.09,12.71]
[1644464842891,70.19907433,111.13,111.04,6.0]
[1644464843091,70.19907433,111.13,111.03,4.5]
[1644464843291,70.19907433,111.13,111.03,16.96]
[1644464844694,83.70487433,111.13,111.03,16.96]
[1644464845094,83.70487433,111.13,111.03,17.21]
[1644464845897,83.70487433,111.13,111.03,12.71]
[1644464847599,83.70487433,111.13,111.04,6.0]
[1644464848198,83.70487433,111.13,111.03,6.25]
[1644464848400,37.541,111.13,111.04,5.20617902]
[1644464848607,24.0352,111.13,111.04,29.22817902]
[1644464848802,24.0352,111.13,111.05,7.76686718]
[1644464849003,24.0352,111.13,111.06,16.96]
[1644464849204,24.0352,111.13,111.07,6.0]
[1644464849409,24.0352,111.13,111.08,37.52850649]
[1644464849608,24.1185,111.16,111.08,59.68440649]
[1644464849805,24.1185,111.16,111.08,61.70127367]
[1644464850004,24.1185,111.16,111.09,6.0]
[1644464850205,24.1185,111.16,111.1,12.46]
[1644464850606,41.46213944,111.15,111.1,12.71]
[1644464851111,41.46213944,111.15,111.1,26.2095]
[1644464851307,41.46213944,111.15,111.1,12.46]
[1644464852125,41.71213944,111.15,111.1,12.46]
[1644464852326,41.46213944,111.15,111.1,12.71]
[1644464853828,41.71213944,111.15,111.1,25.9604]
[1644464854027,41.71213944,111.15,111.1,12.71]
[1644464855027,41.71213944,111.15,111.1,17.209]
[1644464855226,0.25,111.15,111.1,17.209]
[1644464855426,24.15326669,111.16,111.1,17.209]
[1644464855626,24.40326669,111.16,111.1,17.209]
[1644464855828,24.40326669,111.16,111.1,12.71]
[1644464856231,59.54712414,111.16,111.1,12.71]
[1644464858438,24.40326669,111.16,111.1,26.2102]
[1644464858635,24.40326669,111.16,111.1,27.97706718]
[1644464859034,24.40326669,111.16,111.11,6.0]
[1644464859235,24.40326669,111.16,111.12,12.46]
[1644464859441,24.3685,111.16,111.12,12.46]
[1644464859836,0.25,111.16,111.12,12.46]
[1644464860235,0.03476669,111.17,111.12,12.46]
[1644464860434,60.84427784,111.18,111.12,12.46]
[1644464860935,60.84427784,111.18,111.12,26.2082]
[1644464861941,61.09427784,111.18,111.12,26.2082]
[1644464863041,61.09427784,111.18,111.12,27.84980493]
[1644464863240,61.09427784,111.18,111.12,29.61667211]
[1644464863440,61.09427784,111.18,111.12,26.2082]
[1644464864242,60.84427784,111.18,111.12,27.97506718]
[1644464865543,60.84427784,111.18,111.12,26.2082]
[1644464865746,60.84427784,111.18,111.12,12.46]
[1644464866744,74.34387784,111.18,111.12,12.46]
[1644464867845,74.59387784,111.18,111.12,12.46]
[1644464868044,74.59387784,111.18,111.1,49.0268]
[1644464868245,13.53576669,111.17,111.11,0.25]
[1644464868446,13.501,111.17,111.11,0.25]
[1644464868645,13.53576669,111.17,111.11,0.25]
[1644464869147,13.53576669,111.17,111.08,18.72486718]
[1644464869148,39.04585917,111.16,111.08,18.72486718]
[1644464869345,61.80312586,111.16,111.1,0.25]
[1644464869946,61.80312586,111.16,111.08,16.958]
[1644464870145,75.30512586,111.16,111.08,16.958]
[1644464870347,75.30512586,111.16,111.05,16.959]
[1644464870547,101.31879525,111.16,111.05,16.959]
[1644464870747,101.31879525,111.16,111.05,12.46]
[1644464870748,113.41599059,111.16,111.05,12.46]
[1644464870948,35.7363236,111.14,111.05,12.46]
[1644464871149,0.03476669,111.13,111.05,12.46]
[1644464872147,13.5091,111.12,111.05,12.46]
[1644464873048,47.51030696,111.11,111.05,12.46]
[1644464873250,47.54507365,111.11,111.05,12.46]
[1644464873450,13.45551497,111.1,111.05,12.46]
[1644464874357,44.53317103,111.09,111.05,12.46]
[1644464874554,44.53317103,111.09,111.03,12.46]
[1644464874755,44.53317103,111.09,111.03,26.2188]
[1644464876972,44.53317103,111.09,111.04,4.502]
[1644464877162,44.78317103,111.09,111.04,17.7593]
[1644464877360,0.25,111.09,111.04,17.7593]
[1644464877562,24.0892,111.1,111.05,12.46]
[1644464877762,24.0892,111.1,111.05,12.71]
[1644464878178,0.03476669,111.11,111.05,26.2161]
[1644464878379,41.66759433,111.11,111.05,26.2161]
[1644464878579,41.70236102,111.11,111.05,26.2161]
[1644464878780,41.70236102,111.11,111.05,50.68841417]
[1644464879381,41.70236102,111.11,111.06,4.501]
[1644464879586,41.66759433,111.11,111.07,13.5035]
[1644464879779,41.66759433,111.11,111.07,13.7535]
[1644464880380,22.94366669,111.12,111.07,13.7535]
[1644464880981,22.94366669,111.12,111.08,12.46]
[1644464881182,22.94366669,111.12,111.08,12.71]
[1644464881383,0.03476669,111.12,111.08,12.71]
[1644464881581,44.03026906,111.13,111.08,12.71]
[1644464881985,44.28026906,111.13,111.08,12.46]
[1644464882191,44.28026906,111.13,111.06,25.9654]
[1644464882387,44.77936906,111.13,111.06,26.2154]
[1644464883388,58.28506906,111.13,111.06,26.2154]
[1644464883587,58.28506906,111.13,111.06,12.71]
[1644464884489,58.28506906,111.13,111.06,12.46]
[1644464885089,58.28506906,111.13,111.03,16.96]
[1644464885388,13.5096,111.1,111.03,16.96]
[1644464885589,41.02734295,111.09,111.03,16.96]
[1644464885788,41.02734295,111.09,111.03,12.71]
[1644464886790,41.02734295,111.09,111.03,26.2188]
[1644464887298,41.02734295,111.09,111.03,34.36652006]
[1644464888496,24.479,111.1,111.03,34.36652006]
[1644464888797,24.479,111.1,111.03,36.13437599]
[1644464889196,24.729,111.1,111.05,13.5064]
[1644464889395,0.03476669,111.11,111.05,30.4674]
[1644464889597,71.08094932,111.12,111.05,54.25413523]
[1644464889798,0.03476669,111.11,111.05,54.25413523]
[1644464889996,71.08094932,111.12,111.06,6.0]
[1644464890198,0.03476669,111.11,111.06,18.71]
[1644464890397,71.57984932,111.12,111.06,12.71]
[1644464891299,71.82984932,111.12,111.06,12.71]
[1644464891497,71.33094932,111.12,111.06,12.71]
[1644464891697,71.33094932,111.12,111.06,26.2148]
[1644464893501,24.51586669,111.12,111.06,27.98265593]
[1644464893699,24.51586669,111.12,111.07,6.0]
[1644464894001,0.03476669,111.12,111.08,25.9624]
[1644464894198,24.57636669,111.14,111.08,26.2124]
[1644464894397,0.03476669,111.13,111.08,26.2124]
[1644464894599,61.79042155,111.14,111.08,26.2124]
[1644464895898,24.57636669,111.14,111.08,26.2124]
[1644464896900,24.57636669,111.14,111.09,26.2698793]
[1644464897100,24.57636669,111.14,111.1,13.5003]
[1644464897101,24.5416,111.14,111.1,13.5003]
[1644464897301,0.03476669,111.15,111.1,13.7503]
[1644464899104,0.03476669,111.15,111.1,16.17580945]
[1644464899305,0.03476669,111.15,111.1,41.78566538]
[1644464899706,0.03476669,111.17,111.12,13.4974]
[1644464899905,0.03476669,111.16,111.12,13.4974]
[1644464900105,0.03476669,111.18,111.12,15.51525593]
[1644464900307,0.03476669,111.18,111.13,12.46]
[1644464900704,0.03476669,111.18,111.13,12.71]
[1644464901705,0.03476669,111.18,111.14,13.496]
[1644464902107,0.03476669,111.18,111.14,13.746]
[1644464903008,0.53376669,111.18,111.14,13.746]
[1644464903810,45.49614069,111.17,111.14,13.496]
[1644464904609,45.49614069,111.17,111.13,25.9577]
[1644464905010,45.49614069,111.17,111.1,16.958]
[1644464905210,0.4991,111.16,111.09,23.3825]
[1644464905413,0.4991,111.16,111.08,12.46]
[1644464905414,0.53386669,111.16,111.08,12.46]
[1644464905711,0.53386669,111.16,111.06,12.46]
[1644464905910,43.28755143,111.15,111.05,12.46]
[1644464906111,13.507,111.12,111.05,12.46]
[1644464906310,45.17783099,111.11,111.05,12.46]
[1644464906711,45.17783099,111.11,111.05,12.71]
[1644464907013,45.17783099,111.11,111.05,12.46]
[1644464907610,44.67873099,111.11,111.05,25.9667]
[1644464907810,58.18673099,111.11,111.05,25.9667]
[1644464908212,58.18673099,111.11,111.05,26.2167]
[1644464909312,58.43673099,111.11,111.05,26.2167]
[1644464912616,58.93573099,111.11,111.05,26.2167]
[1644464913416,45.42773099,111.11,111.05,26.2167]
[1644464913816,44.92873099,111.11,111.05,26.2167]
[1644464915119,45.42783099,111.11,111.05,26.2167]
[1644464916920,58.93573099,111.11,111.05,26.2167]
[1644464917124,58.93573099,111.11,111.05,25.9667]
[1644464917321,58.93573099,111.11,111.05,12.46]
[1644464918227,58.93573099,111.11,111.05,25.9674]
[1644464918421,58.43663099,111.11,111.05,25.9674]
[1644464919539,44.92873099,111.11,111.05,25.9674]
[1644464920042,44.92873099,111.11,111.05,28.06038165]
[1644464921040,44.92873099,111.11,111.05,25.9674]
[1644464921244,58.43663099,111.11,111.05,25.9674]
[1644464921452,58.43663099,111.11,111.04,4.501]
[1644464921642,0.4991,111.1,111.04,4.501]
[1644464922043,34.6980558,111.09,111.04,4.501]
[1644464922244,34.6980558,111.09,111.02,47.3411]
[1644464922446,48.2098558,111.09,111.02,66.61972264]
[1644464922645,34.6980558,111.09,111.03,12.46]
[1644464922845,48.2517,111.11,111.03,16.962]
[1644464923045,47.7527,111.11,111.04,6.0]
[1644464923244,47.7527,111.11,111.05,12.46]
[1644464923646,47.7527,111.11,111.05,12.71]
[1644464923949,48.09288377,111.1,111.05,12.71]
[1644464924145,56.12568377,111.1,111.05,12.46]
[1644464924345,56.12568377,111.1,111.03,12.46]
[1644464924545,56.12568377,111.1,111.02,47.3411]
[1644464925145,56.37568377,111.1,111.02,47.5911]
[1644464925748,69.88498377,111.1,111.02,61.1017]
[1644464930554,69.88498377,111.1,111.02,60.8517]
[1644464934758,69.88498377,111.1,111.02,61.1017]
[1644464935161,69.38618377,111.1,111.02,61.1017]
[1644464936359,0.4993,111.09,111.02,61.1017]
[1644464936561,37.59950013,111.08,111.02,61.1017]
[1644464937962,37.59950013,111.08,111.02,65.6037]
[1644464939762,37.59950013,111.08,111.02,73.5617]
[1644464940762,37.84950013,111.08,111.02,73.5617]
[1644464941664,51.36050013,111.08,111.02,73.5617]
[1644464953398,51.36050013,111.08,111.01,13.5127]
[1644464953596,51.36050013,111.08,111.0,4.502]
[1644464953597,62.40050013,111.08,111.0,4.502]
[1644464953799,62.40050013,111.08,110.99,12.46]
[1644464953800,0.4991,111.07,110.97,4.502]
[1644464953997,13.5189,111.04,110.95,4.503]
[1644464954199,21.6209,111.04,110.95,4.503]
[1644464954400,45.45534442,111.03,110.92,4.503]
[1644464954598,45.0804,111.01,110.92,4.503]
[1644464954800,37.36767223,111.0,110.93,7.24354811]
[1644464955500,50.89187223,111.0,110.93,7.24354811]
[1644464955698,50.89187223,111.0,110.93,7.49354811]
[1644464955898,50.89187223,111.0,110.93,0.25]
[1644464956298,50.89187223,111.0,110.92,30.7343]
[1644464956901,50.89187223,111.0,110.92,30.4843]
[1644464957099,51.14187223,111.0,110.92,16.963]
[1644464957300,51.14187223,111.0,110.89,16.966]
[1644464957301,0.499,110.99,110.89,16.966]
[1644464957502,13.5249,110.97,110.89,16.966]
[1644464957900,47.03014571,110.96,110.89,46.15877963]
[1644464958300,47.03014571,110.96,110.89,46.40877963]
[1644464958502,47.03014571,110.96,110.9,13.5245]
[1644464958700,47.03014571,110.96,110.9,13.7745]
[1644464961315,47.03014571,110.96,110.9,26.2345]
[1644464961510,47.28014571,110.96,110.9,26.2345]
[1644464962113,0.25,110.96,110.9,26.2345]
[1644464962312,13.524,110.98,110.9,26.2345]
[1644464962517,13.774,110.98,110.9,26.2345]
[1644464963114,57.12110627,110.98,110.91,5.22481973]
[1644464963412,57.12110627,110.98,110.91,9.98081973]
[1644464964214,57.12110627,110.98,110.91,23.50421973]
[1644464965118,13.774,110.98,110.91,23.50421973]
[1644464965317,0.499,111.02,110.91,35.96421973]
[1644464965518,23.0595,111.03,110.94,13.5188]
[1644464965819,0.499,111.03,110.95,42.5765]
[1644464966018,0.4989,111.05,110.95,42.5765]
[1644464966218,47.0606795,111.04,110.96,29.19277963]
[1644464966419,0.4989,111.03,110.97,12.46]
[1644464966618,0.4989,111.03,110.98,13.5152]
[1644464966818,0.4989,111.03,110.98,26.2252]
[1644464967818,47.0606795,111.04,110.98,31.45001973]
[1644464968619,47.0606795,111.04,110.98,26.2252]
[1644464968820,47.3106795,111.04,110.98,26.2252]
[1644464969219,47.3106795,111.04,110.98,30.7282]
[1644464969621,47.3106795,111.04,110.98,55.57090607]
[1644464970020,47.3106795,111.04,110.99,19.5143]
[1644464970223,47.3106795,111.04,110.99,19.7643]
[1644464970820,0.25,111.04,110.99,32.2243]
[1644464971225,0.4989,111.05,110.99,32.2243]
[1644464971826,14.2632,111.06,110.99,32.2243]
[1644464972627,51.36462919,111.06,110.99,32.2243]
[1644464972827,37.85032919,111.06,111.0,9.81388071]
[1644464973027,37.85032919,111.06,111.0,23.32668071]
[1644464973227,37.85032919,111.06,111.0,13.7628]
[1644464973633,37.85032919,111.06,111.0,13.5128]
[1644464973829,37.85032919,111.06,111.0,13.7628]
[1644464974029,37.35142919,111.06,111.0,13.7628]
[1644464974228,37.35142919,111.06,111.0,42.25881592]
[1644464974431,0.25,111.06,111.0,42.25881592]
[1644464974932,45.9722,111.07,111.0,42.25881592]
[1644464975530,92.22902346,111.07,111.0,42.25881592]
[1644464976831,92.22902346,111.07,111.01,12.46]
[1644464977231,92.22902346,111.07,111.01,26.2217]
[1644464978433,92.47902346,111.07,111.01,26.2217]
[1644464979757,92.22902346,111.07,111.01,25.9717]
[1644464979961,92.22902346,111.07,111.01,26.2217]
[1644464980157,45.9722,111.07,111.01,26.2217]
[1644464981258,46.2222,111.07,111.01,26.2217]
[1644464982060,46.2222,111.07,111.02,5.92158344]
[1644464982261,0.25,111.07,111.02,25.9703]
[1644464982661,37.49860521,111.08,111.02,25.9703]
[1644464982863,0.499,111.07,111.02,25.9703]
[1644464983064,37.49860521,111.08,111.02,25.9703]
[1644464983668,0.499,111.07,111.02,25.9703]
[1644464985367,39.54683246,111.06,111.02,25.9703]
[1644464985569,39.54683246,111.06,111.0,23.1951]
[1644464985768,39.54683246,111.06,111.01,6.0]
[1644464985967,39.54683246,111.06,111.0,0.25]
[1644464986167,39.79683246,111.06,111.0,0.25]
[1644464986869,39.79683246,111.06,110.99,22.7654]
[1644464987367,39.79683246,111.06,110.99,22.5154]
[1644464987571,39.79683246,111.06,110.99,22.7654]
[1644464987771,53.31103246,111.06,110.99,36.2796]
[1644464989376,53.31103246,111.06,110.99,40.7826]
[1644464990877,53.31103246,111.06,110.99,18.2672]
[1644464991078,13.5164,111.04,110.99,4.753]
[1644464991679,42.6973629,111.03,110.99,4.753]
[1644464991877,13.5164,111.04,110.99,4.753]
[1644464992277,13.5151,111.05,110.99,4.753]
[1644464992780,61.43650566,111.05,110.99,4.753]
[1644464993582,61.43650566,111.05,110.99,0.25]
[1644464993778,61.43650566,111.05,110.98,55.5002]
[1644464993977,61.43650566,111.05,110.98,50.9972]
[1644464995082,62.96743578,111.05,110.98,51.86835396]
[1644464996484,62.71743578,111.05,110.98,51.86835396]
[1644464996684,49.20233578,111.05,110.98,51.86835396]
[1644464997683,49.20233578,111.05,110.99,4.503]
[1644464997888,49.45233578,111.05,111.0,13.5138]
[1644464998307,49.45233578,111.05,111.0,13.7638]
[1644464999110,62.96733578,111.05,111.0,0.25]
[1644464999509,62.96733578,111.05,110.98,4.503]
[1644464999709,1.28093012,111.04,110.97,12.46]
[1644464999910,1.28093012,111.04,110.97,46.68424937]
[1644465000309,1.28093012,111.04,110.98,13.5157]
[1644465000709,1.28093012,111.04,110.98,26.2257]
[1644465000910,1.28093012,111.04,110.98,25.9757]
[1644465001113,49.20233578,111.05,110.98,26.2257]
[1644465002609,49.20233578,111.05,110.98,30.7287]
[1644465003710,49.20233578,111.05,110.99,6.0]
[1644465004011,1.28093012,111.05,111.0,13.5138]
[1644465004210,0.25,111.05,111.01,6.0]
[1644465004411,14.79473012,111.06,111.01,6.0]
[1644465004610,15.54373012,111.06,111.01,6.0]
[1644465004810,15.54373012,111.06,111.01,6.25]
[1644465005111,56.12214642,111.06,111.01,6.25]
[1644465006815,55.62314642,111.06,111.01,6.25]
[1644465007817,55.62314642,111.06,110.99,12.46]
[1644465007818,55.62314642,111.06,110.99,25.9748]
[1644465008016,46.14889096,111.04,111.0,0.25]
[1644465009317,46.14889096,111.04,110.99,13.5148]
[1644465009516,59.66479096,111.04,110.98,12.46]
[1644465009719,61.44482108,111.04,110.97,12.46]
[1644465009921,1.28093012,111.03,110.94,16.963]
[1644465010121,0.4991,111.02,110.94,4.503]
[1644465010326,0.4991,111.02,110.93,12.46]
[1644465010327,35.53182477,111.01,110.93,12.46]
[1644465010519,48.25866645,110.99,110.93,12.46]
[1644465010720,13.5236,110.98,110.93,12.46]
[1644465010919,0.4991,111.0,110.93,12.46]
[1644465011120,26.14273012,111.01,110.93,18.73118881]
[1644465011320,24.8618,111.01,110.93,18.98118881]
[1644465011724,24.8618,111.01,110.93,43.21378881]
[1644465011922,44.84327406,111.0,110.94,6.0]
[1644465012122,44.84327406,111.0,110.95,13.5199]
[1644465012722,44.84327406,111.0,110.93,38.70878881]
[1644465013725,58.36407406,111.0,110.94,13.5211]
[1644465014125,58.36407406,111.0,110.94,13.7711]
[1644465015727,58.61407406,111.0,110.94,13.7711]
[1644465016028,58.61407406,111.0,110.94,23.22448187]
[1644465016229,45.09327406,111.0,110.94,23.22448187]
[1644465016427,0.25,111.0,110.94,24.99067068]
[1644465016628,0.25,111.0,110.94,15.53728881]
[1644465016829,38.3818,111.01,110.94,15.53728881]
[1644465017027,38.6318,111.01,110.94,15.53728881]
[1644465017530,25.1118,111.01,110.95,28.73668964]
[1644465017828,25.1118,111.01,110.96,13.5183]
[1644465018028,24.8618,111.01,110.96,13.5183]
[1644465018228,24.8618,111.01,110.96,13.7683]
[1644465018628,24.8618,111.01,110.96,26.2283]
[1644465018829,24.5021,111.02,110.96,26.2283]
[1644465019031,14.017,111.03,110.96,26.2283]
[1644465019230,55.40175841,111.03,110.97,5.68090972]
[1644465019532,54.90235841,111.03,110.98,13.5165]
[1644465019730,14.0158,111.04,110.98,13.7665]
[1644465019931,13.5162,111.04,110.98,13.7665]
[1644465020233,13.7662,111.04,110.98,13.7665]
[1644465020932,1.78083012,111.05,110.99,27.64197543]
[1644465021133,0.4999,111.05,110.99,40.10197543]
[1644465021334,0.4999,111.05,111.0,13.5135]
[1644465021535,50.276,111.06,111.0,23.9455]
[1644465021732,50.276,111.06,111.0,24.1955]
[1644465022136,45.00564649,111.05,111.0,13.5135]
[1644465022333,0.4984,111.04,111.0,13.7635]
[1644465022533,45.00564649,111.05,111.0,13.7635]
[1644465022732,45.00564649,111.05,110.99,12.46]
[1644465022933,0.4971,111.04,110.96,6.27232187]
[1644465023134,14.014,111.04,110.97,46.72908485]
[1644465023339,13.5169,111.04,110.97,51.23208485]
[1644465023537,13.5169,111.04,110.97,53.25140672]
[1644465023737,47.24124714,111.03,110.97,53.25140672]
[1644465023936,13.7669,111.04,110.97,48.74840672]
[1644465024136,13.7669,111.04,110.98,13.5169]
[1644465024563,13.7669,111.04,110.98,13.7669]
[1644465024961,60.37040473,111.04,110.98,13.5169]
[1644465025161,14.0151,111.05,110.98,13.7669]
[1644465025366,14.0151,111.05,110.98,15.53622187]
[1644465025961,14.0151,111.05,110.99,12.46]
[1644465026168,14.0151,111.05,110.99,26.2256]
[1644465026362,14.2651,111.05,110.99,26.2256]
[1644465027062,35.10501283,111.04,110.99,25.9756]
[1644465027267,35.10501283,111.04,110.99,26.2256]
[1644465027462,35.10501283,111.04,110.99,25.9756]
[1644465027662,35.10501283,111.04,110.99,26.2256]
[1644465028064,48.62121283,111.04,110.99,12.71]
[1644465028265,48.62121283,111.04,110.98,1.76932187]
[1644465028465,36.92296464,111.02,110.96,12.46]
[1644465028665,36.92296464,111.02,110.96,12.71]
[1644465029266,37.17296464,111.02,110.96,12.71]
[1644465029466,37.17296464,111.02,110.96,12.46]
[1644465029770,50.69196464,111.02,110.96,25.9793]
[1644465030166,50.69196464,111.02,110.96,26.99012008]
[1644465030366,50.69196464,111.02,110.96,28.75944195]
[1644465030766,50.69196464,111.02,110.96,29.00944195]
[1644465031169,13.769,111.02,110.96,29.00944195]
[1644465031969,13.769,111.02,110.96,27.74862187]
[1644465032173,22.399,111.02,110.96,27.74862187]
[1644465032372,0.499,111.01,110.95,13.5205]
[1644465032570,13.5209,111.0,110.95,13.5205]
[1644465032770,13.5209,111.0,110.95,13.7705]
[1644465032970,59.5594918,111.0,110.95,13.7705]
[1644465033169,59.5594918,111.0,110.96,8.9354394]
[1644465034775,13.5209,111.0,110.96,8.9354394]
[1644465036577,13.7709,111.0,110.96,8.9354394]
[1644465038176,13.7709,111.0,110.95,8.9354394]
[1644465042480,13.7709,111.0,110.95,22.4570394]
[1644465042882,13.7709,111.0,110.95,13.5216]
[1644465045885,13.7709,111.0,110.96,8.9354394]
[1644465047485,13.7709,111.0,110.96,8.9127004]
[1644465050719,13.7709,111.0,110.96,22.4332004]
[1644465050991,0.25,111.0,110.96,285.9367234]
[1644465051187,13.5197,111.01,110.96,277.024023]
[1644465052389,52.81758489,111.02,110.96,287.52754891]
[1644465052590,51.53665477,111.02,110.96,287.77754891]
[1644465052791,13.5187,111.02,110.96,287.77754891]
[1644465053193,13.7687,111.02,110.96,287.77754891]
[1644465053790,60.87494191,111.02,110.96,287.77754891]
[1644465054190,60.87494191,111.02,110.97,8.9127004]
[1644465054390,60.87494191,111.02,110.98,13.5178]
[1644465054591,13.7687,111.02,110.98,13.5178]
[1644465055192,13.7687,111.02,110.97,8.9127004]
[1644465055391,15.04963012,111.02,110.97,8.9127004]
[1644465055591,1.28093012,111.01,110.97,8.9127004]
[1644465055793,48.2172797,111.0,110.97,8.9127004]
[1644465056992,49.99700982,111.0,110.97,8.9127004]
[1644465058216,49.49820982,111.0,110.97,8.9127004]
[1644465059395,49.99680982,111.0,110.97,8.9127004]
[1644465059596,13.5256,110.98,110.96,263.503523]
[1644465059795,14.80653012,110.98,110.96,263.503523]
[1644465060395,40.80898337,110.97,110.96,263.503523]
[1644465061901,54.33468337,110.97,110.96,263.503523]
[1644465063303,54.58468337,110.97,110.96,263.503523]
[1644465064603,54.58468337,110.97,110.96,13.92484183]
[1644465064805,54.58468337,110.97,110.92,4.505]
[1644465064806,67.04468337,110.97,110.92,4.505]
[1644465065104,1.28093012,110.96,110.89,4.506]
[1644465065303,1.28093012,110.96,110.88,24.5391]
[1644465065304,13.5302,110.94,110.88,24.5391]
[1644465065503,13.5302,110.94,110.89,4.507]
[1644465065723,24.80509401,110.93,110.88,29.0461]
[1644465066023,82.13373012,110.96,110.88,29.0461]
[1644465066225,13.5301,110.93,110.88,24.5391]
[1644465066423,13.5301,110.93,110.89,4.508]
[1644465067425,13.5301,110.93,110.89,50.92472314]
[1644465068026,13.5301,110.93,110.89,4.508]
[1644465069131,13.7801,110.93,110.89,4.508]
[1644465071426,13.5301,110.93,110.88,77.08403171]
[1644465071626,13.5301,110.93,110.88,77.33403171]
[1644465072227,0.4991,110.96,110.88,79.10351178]
[1644465072426,46.37243012,110.98,110.88,91.56351178]
[1644465072628,0.4966,110.97,110.88,91.56351178]
[1644465073027,23.9391,110.99,110.89,30.3992]
[1644465073228,36.46557805,110.98,110.9,64.44110227]
[1644465073428,36.46557805,110.98,110.9,66.21058234]
[1644465073728,36.46557805,110.98,110.9,66.46058234]
[1644465074432,13.5238,110.98,110.91,13.5237]
[1644465074631,13.5238,110.98,110.91,15.29318007]
[1644465074831,0.4964,110.99,110.92,14.22948007]
[1644465075030,1.77703012,111.03,110.93,4.506]
[1644465075230,1.28093012,111.03,110.94,66.6456]
[1644465075433,45.85407021,111.02,110.95,40.57095984]
[1644465075830,45.85407021,111.02,110.95,40.82095984]
[1644465076631,45.85407021,111.02,110.96,13.5181]
[1644465076831,46.35597021,111.02,110.96,13.5181]
[1644465077035,46.60597021,111.02,110.96,13.7681]
[1644465077432,46.60597021,111.02,110.97,37.76909437]
[1644465077834,46.60597021,111.02,110.97,38.01909437]
[1644465078535,46.10407021,111.02,110.97,38.01909437]
[1644465079836,0.25,111.02,110.97,38.01909437]
[1644465080238,13.7684,111.03,110.97,38.01909437]
[1644465080737,60.17970525,111.03,110.97,38.01909437]
[1644465080937,60.17970525,111.03,110.97,37.76909437]
[1644465082341,0.25,111.03,110.97,51.28679437]
[1644465082740,14.79763012,111.04,110.97,51.28679437]
[1644465083141,13.5167,111.04,110.97,51.53679437]
[1644465083540,24.86232365,111.03,110.97,51.53679437]
[1644465084644,38.38002365,111.03,110.97,13.5177]
[1644465084842,38.38002365,111.03,110.96,30.482]
[1644465085041,0.499,111.02,110.96,13.519]
[1644465085643,0.499,111.02,110.96,61.2726029]
[1644465086248,26.39325377,111.03,110.96,61.2726029]
[1644465086847,13.5196,111.02,110.96,61.2726029]
[1644465087747,13.5196,111.02,110.96,61.5226029]
[1644465090649,13.7696,111.02,110.96,61.5226029]
[1644465092590,13.5179,111.03,110.96,61.2726029]
[1644465092788,13.5179,111.03,110.96,61.5226029]
[1644465093688,59.69673079,111.03,110.96,61.5226029]
[1644465093888,60.44573079,111.03,110.96,61.5226029]
[1644465094791,60.44573079,111.03,110.96,61.2726029]
[1644465094990,59.94673079,111.03,110.96,47.7536029]
[1644465095195,61.22766091,111.03,110.96,47.7536029]
[1644465095396,86.00156091,111.03,110.96,47.7536029]
[1644465095991,0.4989,111.02,110.96,47.7536029]
[1644465096192,14.0187,111.02,110.96,47.7536029]
[1644465096993,19.43524659,111.01,110.95,13.5202]
[1644465097393,13.5211,111.0,110.94,80.1671]
[1644465098093,13.5211,111.0,110.95,48.28568482]
[1644465099793,14.80083012,111.01,110.95,61.80628482]
[1644465099995,1.28093012,111.02,110.95,62.05628482]
[1644465100198,1.53093012,111.02,110.95,66.56128482]
[1644465100596,1.28093012,111.02,110.95,66.56128482]
[1644465101197,1.28093012,111.02,110.95,62.05628482]
[1644465101795,14.79983012,111.02,110.95,62.05628482]
[1644465101999,15.04983012,111.02,110.96,12.46]
[1644465102194,15.04983012,111.02,110.97,48.82110797]
[1644465102399,1.28093012,111.01,110.97,48.82110797]
[1644465102595,1.28093012,111.01,110.97,49.07110797]
[1644465102799,1.53093012,111.02,110.97,49.07110797]
[1644465103397,1.28093012,111.01,110.97,49.07110797]
[1644465105097,1.28093012,111.01,110.97,48.82110797]
[1644465105300,1.28093012,111.01,110.97,49.07110797]